Cogmind - Beta 14 X2 @@@ ROGUE MODE // 2024.07.30 @ 15:19:25 Player: Infomantis Result: Destroyed by B-99 Colossus with Multirail Performance ------------- Evolutions (9) 4500 Regions Visited (22) 4400 Robots Destroyed (209) 1045 Value Destroyed (9885) 9885 Prototype IDs (60) 1200 Alien Tech Used (8) 1600 Bonus (17705) 17705 TOTAL SCORE: 40335 Bonus ------- High Alert Combat Kills 1494 Follower Combat Kills 3108 Delivered SUBCON Basin 2000 Registered with UFD 300 Met Zhirov 300 Met Warlord at Base 500 MAIN.C Attacked Warlord 500 Warlord Defense Kills 3330 Found Hidden Lab 3000 Used Core Reset Matrix 3000 Pursued by Intercept 1000 Friendly Fire -827 Cogmind --------- Core Integrity 0/1600 Matter 300/300 Energy 99/100 System Corruption 11% Temperature Cool (0) Movement Core (50) Location -1/Access Parts ------- > --- POWER (3) -------- (None) > --- PROPULSION (8) --- Centrium Leg > --- UTILITY (12) ----- Improved Target Analyzer Improved Target Analyzer Advanced Target Analyzer Tech Extrapolator > --- WEAPON (3) ------- (None) > --- INVENTORY (5) ---- Matter Compressor (26) Long-range Tractor Beam Dimensional Node Initializer Transdimensional Reconstructor Enhanced Nova Cannon Peak State ------------ > --- POWER ------------ Micro Antimatter Reactor Graviton Reactor Light Quantum Reactor > --- PROPULSION ------- Myomer Leg Centrium Leg Centrium Leg Centrium Leg Centrium Leg Centrium Leg Centrium Leg > --- UTILITY ---------- Scrap Suit Advanced Cryofiber Web Experimental Heat Sink Medium Storage Unit Advanced Signal Interpreter Precision Energy Filter Heavy Armor Plating AEGIS Remote Shield Tech Extrapolator > --- WEAPON ----------- Overtuned Quantum Rifle Overtuned Railgun Overtuned Railgun > --- INVENTORY -------- Advanced Cooling System Energy Well Centrium Light Armor Plating Quantum Router Transdimensional Reconstructor Transdimensional Reconstructor Vortex Rail Micro-nuke Launcher Guided Remote Datajack Multitool [Rating: 176] Favorites ----------- Power Nuclear Core Engine Ion Engine Power Core Nuclear Core Reactor Micro Antimatter Reactor Propulsion Centrium Leg Treads Armored Treads Leg Centrium Leg Wheel Compact Wheel Hover Unit Combat Linear Gravjet Flight Unit Advanced Surge Thruster Utility Tech Extrapolator Device Scrap Suit Storage Humpback Processor Tech Extrapolator Hackware Authchip [Device] Protection Makeshift Thermal Plating Weapon Makeshift Laser Energy Gun Makeshift Laser Energy Cannon Heavy Neutron Cannon Ballistic Gun Subdweller Machine Gun Ballistic Cannon Compact Linear Accelerator Launcher Micro-nuke Launcher Special Weapon Improved Plasma Cutter Impact Weapon Core Stripper Slashing Weapon Axe Piercing Weapon Plasma Lance Special Melee Weapon Advanced Datajack Build | -11 -10 -10 -10 -8 -8 -6 -5 -5 -5 -5 -4 -4 -4 -4 -4 -3 -3 -3 -3 -2 -2 -1 ------- Run | Yrd Mat Min Sub Rec Scr Fac Fac Upp Upp War Pro Fac Upp Upp Zhi Pro Res Arm Lab Res Qua Acc Slots Evolved 18 | . . . . . . 8 2 . . . . 2 . . . . 2 . . 2 . 2 Power 2 | . . . . . . 1 . . . . . . . . . . 1 . . . . . Propulsion 6 | . . . . . . 2 1 . . . . 1 . . . . 1 . . . . 1 Utility 9 | . . . . . . 4 1 . . . . 1 . . . . . . . 2 . 1 Weapon 1 | . . . . . . 1 . . . . . . . . . . . . . . . . Parts Attached 344 | 7 2 3 13 2 11 16 26 4 3 53 2 34 2 2 13 5 15 35 9 32 27 28 Power 37 | 1 1 1 . 1 1 1 4 . . 8 . 1 . . 2 . 4 2 2 4 1 3 Engine 3 | 1 1 . . . . . . . . . . . . . . . 1 . . . . . Core 8 | . . 1 . 1 1 1 2 . . 2 . . . . . . . . . . . . Reactor 26 | . . . . . . . 2 . . 6 . 1 . . 2 . 3 2 2 4 1 3 Propulsion 79 | 2 . 1 2 1 6 4 5 . . 8 . 7 . 2 3 3 3 12 . 3 9 8 Treads 7 | 2 . . . . 4 . . . . . . . . . . . . . . . . 1 Leg 24 | . . . 1 . . 1 . . . 1 . . . . 1 . . 12 . 1 5 2 Wheel 10 | . . 1 1 1 2 1 . . . . . . . . . 2 1 . . . . 1 Hover 33 | . . . . . . 2 5 . . 7 . 4 . 2 2 1 2 . . 2 2 4 Flight 5 | . . . . . . . . . . . . 3 . . . . . . . . 2 . Utility 129 | 2 . . 4 . 4 7 9 3 2 16 2 19 2 . 4 1 4 16 3 14 5 12 Device 83 | 1 . . 1 . 1 6 6 3 1 10 2 14 1 . 3 1 3 12 3 7 3 5 Storage 12 | 1 . . 1 . . . 2 . . . . 1 . . . . . . . 2 2 3 Processor 9 | . . . . . 1 1 1 . . . . . 1 . . . . . . 1 . 4 Hackware 2 | . . . . . . . . . . . . 1 . . . . . 1 . . . . Protection 23 | . . . 2 . 2 . . . 1 6 . 3 . . 1 . 1 3 . 4 . . Artifact . | . . . . . . . . . . . . . . . . . . . . . . . Weapon 99 | 2 1 1 7 . . 4 8 1 1 21 . 7 . . 4 1 4 5 4 11 12 5 Energy Gun 39 | 1 . . 2 . . 2 3 . 1 9 . 1 . . . 1 1 1 1 6 7 3 Energy Cannon 4 | . . . . . . . . . . 2 . . . . . . . . . . . 2 Ballistic Gun 30 | 1 1 1 4 . . . 1 . . 3 . 3 . . 4 . 3 3 2 4 . . Ballistic Cannon 3 | . . . . . . . . . . 3 . . . . . . . . . . . . Launcher 10 | . . . 1 . . 2 1 1 . 1 . . . . . . . 1 . 1 2 . Special Weapon 5 | . . . . . . . . . . 2 . 2 . . . . . . 1 . . . Impact Weapon 3 | . . . . . . . . . . . . . . . . . . . . . 3 . Slashing Weapon 3 | . . . . . . . 3 . . . . . . . . . . . . . . . Piercing Weapon 1 | . . . . . . . . . . 1 . . . . . . . . . . . . Special Melee Weapon 1 | . . . . . . . . . . . . 1 . . . . . . . . . . Unidentified Prototypes 41 | . . . . . . . 2 . 1 18 . 1 . . 5 . . 2 4 2 4 2 Corrupted Parts 2 | . . . . . . 1 . . . . . . . . . . . . . . . 1 System Corruption 2 | . . . . . . 1 . . . . . . . . . . . . . . . 1 Parts Lost 90 | . . 1 2 . . 8 1 1 . 2 2 6 . . . 3 2 2 1 18 21 20 Power 8 | . . . . . . . 1 . . . . . . . . . . 1 . 3 2 1 Propulsion 30 | . . 1 1 . . 2 . . . . 1 1 . . . 3 . . . 5 7 9 Utility 34 | . . . 1 . . 3 . 1 . . 1 3 . . . . . 1 1 7 8 8 Weapon 18 | . . . . . . 3 . . . 2 . 2 . . . . 2 . . 3 4 2 Highest Loss Streak 15 | . . 1 1 . . 6 1 1 . 1 2 3 . . . 2 1 2 1 15 8 7 To Critical Strikes 3 | . . . . . . . . . . . 1 . . . . . . . . 1 1 . Average Slot Usage (%) 87 | . 100 99 89 85 93 75 80 80 81 85 79 80 95 95 79 84 73 93 93 75 65 39 Core 8 | . . 5 14 14 14 12 3 5 5 3 . . . . . . . . . . . . Reactor 2 | . . . . . . . 6 5 5 6 11 10 10 10 10 10 6 12 13 8 4 1 Treads 8 | . 28 14 3 . 16 11 . . . . . . . . . . . . . . . . Leg 3 | . . . 7 . . 2 . . . . . . . . . . . 29 31 21 9 3 Wheel 8 | . . 13 17 28 10 . . . . . . . . . . 9 9 . . . . 1 Hover 4 | . . . . . . 1 17 17 16 19 20 18 30 30 30 9 7 . . 2 7 3 Device 8 | . 14 14 4 . 1 16 17 15 16 15 11 19 25 25 24 25 21 20 20 14 13 8 Storage 5 | . 14 14 3 14 5 . 1 5 5 5 5 4 5 5 5 5 4 4 4 3 10 2 Processor 7 | . . . . . 8 11 13 11 11 11 11 5 9 10 10 10 9 9 9 9 10 8 Protection 4 | . . . 9 . 7 4 . . . 4 5 5 . . . . . . . 2 . . Energy Gun 10 | . 14 14 14 14 14 8 9 10 11 10 8 2 . . . 4 7 3 4 6 6 3 Ballistic Gun 10 | . 14 14 13 14 14 3 4 5 5 3 . 4 15 15 . 10 3 8 8 4 . . Naked Turns . | . . . . . . . . . . . . . . . . . . . . . . . Heaviest Build 213 | 14 14 14 211 213 213 38 57 46 48 56 54 55 55 52 52 52 76 82 87 111 67 68 Greatest Support 208 | 40 40 20 36 36 43 43 55 52 52 61 61 75 75 72 70 62 60 208 208 208 110 55 Greatest Overweight (x) 13 | 1 . . 13 13 13 2 1 . . 1 . 1 . . . 2 1 2 . 1 1 4 Average Overweight (x) 1 | . . . 1 5 3 . . . . . . . . . . 1 . . . . . . Largest Inventory Capacity 35 | 8 8 8 35 35 35 5 10 8 8 8 8 10 10 10 10 10 10 10 10 10 15 15 Average Capacity 13 | 7 8 8 12 35 16 5 6 8 8 8 8 7 10 10 10 10 10 10 10 8 13 13 Most Carried 35 | 7 8 8 35 35 27 5 8 8 8 8 8 8 5 6 10 10 10 10 10 10 14 13 Average Carried 10 | 3 7 7 8 34 11 4 5 8 7 7 7 7 5 5 9 9 9 9 9 7 10 10 Final Capacity 35 | 8 8 8 35 35 5 5 8 8 8 8 8 10 10 10 10 10 10 10 10 10 15 5 Final Carried 35 | 7 8 8 35 21 5 5 8 8 7 8 8 5 5 6 7 10 10 10 10 10 13 5 Class Distribution -------------------- 27% | Derelict-Mutant 22% | Hauler-Mutant 11% | Mutant 8% | Scavenger-Scrapper 7% | Scavenger-Mutant 5% | Scavenger-Gunner 5% | Scavenger-Skirmisher 4% | Scavenger-Scout 4% | Alien-Mutant Dominant Class ---------------- Mutant | -10/Materials Mutant | -10/Mines Mutant | -10/Subcaves Hauler-Mutant | -8/Recycling Derelict-Mutant | -8/Scraptown Derelict-Mutant | -6/Factory Scavenger-Scrapper | -5/Factory Scavenger-Scrapper | -5/Upper Caves Scavenger-Scrapper | -5/Upper Caves Scavenger-Gunner | -5/Warlord Scavenger-Gunner | -4/Proximity Caves Scavenger-Mutant | -4/Factory Scavenger-Scout | -4/Upper Caves Scavenger-Scout | -4/Upper Caves Scavenger-Scout | -4/Zhirov Scavenger-Scrapper | -3/Proximity Caves Scavenger-Scrapper | -3/Research Scavenger-Skirmisher | -3/Armory Scavenger-Skirmisher | -3/Lab Scavenger-Tank | -2/Research Scavenger-Mutant | -2/Quarantine Alien-Mutant | -1/Access Resources | -11 -10 -10 -10 -8 -8 -6 -5 -5 -5 -5 -4 -4 -4 -4 -4 -3 -3 -3 -3 -2 -2 -1 ----------- Run | Yrd Mat Min Sub Rec Scr Fac Fac Upp Upp War Pro Fac Upp Upp Zhi Pro Res Arm Lab Res Qua Acc Matter Collected 6543 | 245 83 37 303 32 120 234 462 100 26 984 114 820 135 40 147 281 162 756 88 750 148 476 Remotely . | . . . . . . . . . . . . . . . . . . . . . . . Salvage Created 9869 | 64 253 46 372 287 . 421 695 184 . 1366 304 1824 . . 166 511 61 1100 88 1089 322 716 Parts 454 | 10 15 3 26 12 . 20 49 4 . 50 4 81 . . 1 25 5 46 3 63 8 29 Haulers Intercepted . | . . . . . . . . . . . . . . . . . . . . . . . Recyclers Shooed 10 | 2 . . . . . 2 1 . . . . 4 . . . . . . . . 1 . Parts Field Recycled . | . . . . . . . . . . . . . . . . . . . . . . . Retrieved Matter . | . . . . . . . . . . . . . . . . . . . . . . . Parts Self-Destructed 80 | . . . 27 . . . . 5 . . 4 . 9 10 1 24 . . . . . . Prevented 1 | . . . 1 . . . . . . . . . . . . . . . . . . . Kills | -11 -10 -10 -10 -8 -8 -6 -5 -5 -5 -5 -4 -4 -4 -4 -4 -3 -3 -3 -3 -2 -2 -1 ------- Run | Yrd Mat Min Sub Rec Scr Fac Fac Upp Upp War Pro Fac Upp Upp Zhi Pro Res Arm Lab Res Qua Acc Combat Hostiles Destroyed 165 | . 5 3 9 3 . 14 14 3 . 26 6 18 . . . 11 1 20 1 20 3 8 Melee 1 | . . . . . . . . . . . . . . . . . . 1 . . . . Guns 117 | . 5 3 9 3 . 4 11 3 . 21 3 9 . . . 11 1 14 1 12 1 6 Cannons 8 | . . . . . . . . . . 3 2 3 . . . . . . . . . . AOE 33 | . . . . . . 10 3 . . 1 1 6 . . . . . 5 . 6 1 . Classes Destroyed 26 | 1 2 1 3 2 . 3 3 . . 7 . 3 . . . . . . . . 1 . Worker 10 | . . . . . . 2 2 . . . . 4 . . . . 1 . . . . 1 Builder 6 | . . . . . . . 3 . . . . 1 . . . . . . . 2 . . Tunneler 5 | 4 . . . . . . . . . . . 1 . . . . . . . . . . Recycler 10 | . . . . 2 . 1 1 . . . . 5 . . . . . . . . 1 . Mechanic 1 | . 1 . . . . . . . . . . . . . . . . . . . . . Operator 2 | . . . . . . . 1 . . . . 1 . . . . . . . . . . Turret 2 | . . . 2 . . . . . . . . . . . . . . . . . . . Watcher 4 | . . . . . . 1 . . . . . 2 . . . . . . . . . 1 Swarmer 50 | . . 3 1 . . 6 8 3 . 1 5 2 . . . 8 1 4 . 8 . . Cutter 3 | . . . . . . . . . . . . 3 . . . . . . . . . . Saboteur 4 | . . . . . . . . . . 1 . . . . . . . 3 . . . . Grunt 55 | . 5 . 2 . . 7 1 . . 8 . 9 . . . 3 . 10 . 5 1 4 Brawler 2 | . . . . . . . . . . 2 . . . . . . . . . . . . Duelist 3 | . . . . . . . . . . 2 . . . . . . . 1 . . . . Protector 3 | . . . . . . . . . . 3 . . . . . . . . . . . . Researcher 1 | . . . . . . . . . . . . . . . . . . . . . 1 . Sentry 6 | . . . . 3 . . . . . . 1 . . . . . . . . 1 . 1 Demolisher 1 | . . . . . . . . . . 1 . . . . . . . . . . . . Hunter 6 | . . . . . . . 1 . . 1 . 2 . . . . . . . 2 . . Programmer 19 | . . . . . . 1 4 . . 4 . 1 . . . . . 2 . 2 2 3 Heavy 1 | . . . . . . . . . . . . 1 . . . . . . . . . . Tracker 2 | . . . . . . . . . . . . . . . . . . . . 2 . . Striker 1 | . . . . . . . . . . 1 . . . . . . . . . . . . Executioner 2 | . . . . . . . . . . 2 . . . . . . . . . . . . Artisan 1 | . . . 1 . . . . . . . . . . . . . . . . . . . Subdweller 6 | . . . 6 . . . . . . . . . . . . . . . . . . . Scrapoid 3 | . . . . . . . . . . . . 2 . . . . . 1 . . . . Best Kill Streak 12 | 1 3 3 2 4 . 12 12 3 . 6 6 6 . . . 6 1 8 1 10 2 3 Combat Bots Only 9 | . 2 3 2 2 . 9 8 3 . 6 6 5 . . . 6 1 8 1 8 1 3 Max Kills in Single Turn 7 | 1 1 1 1 1 . 7 2 1 . 2 1 4 . . . 2 1 3 1 4 1 2 Gunslinging 1 | . . . . . . . 1 . . 1 . . . . . 1 . 1 . 1 . . Exploded 6 | . . . . . . 6 1 . . 1 1 3 . . . . . 3 . 4 1 . Melee 1 | . . . . . . . . . . . . . . . . . . 1 . . . . Uniques/NPCs Destroyed 1 | . . . . . . . . . . . . . . . . . . . 1 . . . A5 (-3/Lab) Combat | -11 -10 -10 -10 -8 -8 -6 -5 -5 -5 -5 -4 -4 -4 -4 -4 -3 -3 -3 -3 -2 -2 -1 -------- Run | Yrd Mat Min Sub Rec Scr Fac Fac Upp Upp War Pro Fac Upp Upp Zhi Pro Res Arm Lab Res Qua Acc Hostile Shots Fired 1473 | . 33 26 61 12 . 72 99 13 . 102 34 168 . 21 . 37 29 87 22 289 146 222 Missed 482 | . 7 7 19 1 . 20 34 4 . 51 10 91 . 16 . 16 10 29 6 77 38 46 Damage Taken 20579 | . 349 152 648 163 . 984 1312 146 . 1167 460 1798 . 86 . 456 632 1242 418 3513 2879 4174 Core 3570 | . 71 16 50 15 . 176 225 31 . 93 15 170 . 13 . 44 113 59 . 327 596 1556 Absorbed by Shields 1117 | . . . . . . . . . . . . . . . . . . . . 1117 . . Redirected to Shielding 54 | . . . . . . . . . . . . . . . . . . 29 25 . . . Ignored by Resistances 72 | . . . 18 . . 54 . . . . . . . . . . . . . . . . Regen/Repaired (Parts) 662 | . . . . . . . 35 10 . 254 10 129 . . 5 42 61 64 5 47 . . Core Remaining (%) 66 | 100 . . . . 39 79 . . . . 63 . . . . 80 . . 86 . 16 . Volleys Fired 702 | 10 28 12 71 11 . 27 45 7 4 71 39 76 . 3 7 22 13 59 48 54 35 60 Largest 3 | 2 2 2 2 2 . 3 3 3 1 3 3 3 . 3 1 3 3 3 3 3 3 2 Hottest 245 | 70 70 70 180 80 . 150 232 232 100 232 215 164 . 96 32 164 228 180 180 200 245 130 Shots Fired 1322 | 20 56 24 121 22 . 46 87 20 4 173 53 149 . 5 7 58 22 137 82 108 52 76 Gun 1224 | 20 56 24 120 22 . 39 83 20 4 149 34 124 . 5 7 58 22 134 80 106 45 72 Cannon 66 | . . . . . . . . . . 24 19 19 . . . . . . . . . 4 Launcher 24 | . . . 1 . . 7 4 . . . . . . . . . . 3 . 2 7 . Special 8 | . . . . . . . . . . . . 6 . . . . . . 2 . . . Kinetic 613 | 10 28 12 69 11 . 15 25 6 . 82 19 100 . 5 7 46 3 91 33 51 . . Thermal 598 | 10 28 12 51 11 . 14 58 14 4 83 30 43 . . . 12 19 43 47 20 34 65 Explosive 23 | . . . 1 . . . 4 . . . . 6 . . . . . 3 . 2 7 . Electromagnetic 46 | . . . . . . 17 . . . . . . . . . . . . . 18 . 11 Entropic 40 | . . . . . . . . . . 8 4 . . . . . . . . 17 11 . Robot Hit Streak 15 | 3 7 2 12 12 . 5 7 6 . 14 15 10 . 1 4 9 13 7 10 8 13 15 Robot Miss Streak 7 | 3 3 4 5 2 . 2 7 4 . 4 5 6 . 2 1 4 1 7 4 6 5 5 Penetration Max 2 | . . . . . . . 1 1 . 1 . 1 . . 1 1 . 1 . 2 . . Secondary Targets 31 | . 2 1 1 1 . . 2 1 . 5 . 2 . . . 4 . 6 . 4 1 1 Max Gunslinging Chain 1 | . 1 1 1 1 . . 1 1 . 1 . 1 . . . 1 . 1 . 1 1 1 Shots Hit Robots 746 | 11 40 10 52 17 . 23 48 11 . 111 21 79 . 1 6 33 12 75 47 59 37 53 Core Hits 422 | 6 14 3 19 7 . 31 30 5 . 62 10 67 . 1 4 19 4 38 13 44 16 29 Critical Kills 5 | . . . . . . . . . . 1 . 1 . . . 1 . 1 . 1 . . Critical Parts Destroyed 24 | . . . . . . . 1 . . 5 1 3 . . . . . 5 1 6 2 . Critical Strikes 81 | . 3 1 . . . 2 5 2 . 24 8 8 . . . 2 . 7 6 7 6 . Burn 47 | . 3 1 . . . 2 4 2 . 17 6 2 . . . 1 . 1 4 . 4 . Destroy 26 | . . . . . . . 1 . . 6 . 4 . . . 1 . 6 2 6 . . Blast 2 | . . . . . . . . . . 1 1 . . . . . . . . . . . Sever 2 | . . . . . . . . . . . . 2 . . . . . . . . . . Detonate 4 | . . . . . . . . . . . 1 . . . . . . . . 1 2 . Melee Attacks 8 | . . . . . . . 5 . . . . . . . . . . . . . 3 . Kinetic 3 | . . . . . . . . . . . . . . . . . . . . . 3 . Impact . | . . . . . . . . . . . . . . . . . . . . . . . Slashing 5 | . . . . . . . 5 . . . . . . . . . . . . . . . Piercing . | . . . . . . . . . . . . . . . . . . . . . . . Sneak Attacks . | . . . . . . . . . . . . . . . . . . . . . . . Combat Hostiles . | . . . . . . . . . . . . . . . . . . . . . . . Follow-up Attacks 2 | . . . . . . . 2 . . . . . . . . . . . . . . . Damage Inflicted 29742 | 129 420 104 847 339 . 2039 2000 359 . 4129 704 4716 . 88 267 1095 344 3480 1026 3304 2443 1909 Guns 20702 | 129 418 104 847 339 . 369 1494 359 . 3521 474 2214 . 88 267 1095 344 2693 1026 2221 1098 1602 Cannons 1453 | . . . . . . . . . . 569 196 646 . . . . . . . . . 42 Explosions 7001 | . . . . . . 1670 415 . . . 34 1616 . . . . . 787 . 1009 1214 256 Melee 222 | . . . . . . . 91 . . . . . . . . . . . . . 131 . Ramming 124 | . 2 . . . . . . . . 39 . . . . . . . . . 74 . 9 Kinetic 12510 | 66 145 30 451 188 . 1089 518 140 . 2193 196 2330 . 88 267 892 36 2042 500 1208 131 . Thermal 10640 | 63 273 74 396 151 . 810 976 219 . 1717 429 530 . . . 203 308 651 526 467 1045 1802 Explosive 4475 | . . . . . . . 415 . . . . 1376 . . . . . 787 . 923 974 . Electromagnetic 783 | . . . . . . 140 . . . . . 240 . . . . . . . 305 . 98 Impact . | . . . . . . . . . . . . . . . . . . . . . . . Slashing 331 | . . . . . . . 91 . . . . 240 . . . . . . . . . . Piercing . | . . . . . . . . . . . . . . . . . . . . . . . Entropic 879 | . . . . . . . . . . 180 79 . . . . . . . . 327 293 . Highest Corruption 16 | . . . . . . 2 2 2 2 2 . 3 3 3 3 3 1 2 7 4 16 11 Average Corruption 3 | . . . . . . 1 2 2 2 2 . 2 3 3 3 3 1 1 6 3 6 5 Corruption Purged 1 | . . . . . . . . . . . . . . . . . . 1 . . . . Corruption Blocked . | . . . . . . . . . . . . . . . . . . . . . . . Effects 103 | . . . . . . 4 1 5 4 . . 3 11 5 6 12 1 5 10 10 14 12 Message Errors 21 | . . . . . . 1 . 2 . . . 1 3 2 2 2 . . . 2 3 3 Matter Fused 23 | . . . . . . 1 . . 2 . . . 4 . 1 5 . 1 4 2 1 2 Heat Flow Errors 16 | . . . . . . . . . 2 . . . 2 1 2 2 . 1 . 2 3 1 Energy Discharges 15 | . . . . . . . . 1 . . . . 1 2 1 . . 1 2 2 3 2 Parts Rejected 3 | . . . . . . 1 1 . . . . . . . . . . . . 1 . . Parts Fused 2 | . . . . . . . . . . . . . . . . . . . 1 . . 1 Data Loss (minor) 8 | . . . . . . . . 1 . . . 1 1 . . 1 1 . . 1 2 . Data Loss (major) 4 | . . . . . . . . . . . . . . . . . . . 1 . 1 2 Misfires 3 | . . . . . . . . . . . . 1 . . . . . . 1 . 1 . Alerts 5 | . . . . . . 1 . 1 . . . . . . . 2 . 1 . . . . Weapon Failures 3 | . . . . . . . . . . . . . . . . . . 1 1 . . 1 Overload Shots 2 | . . . 2 . . . . . . . . . . . . . . . . . . . Effects 1 | . . . 1 . . . . . . . . . . . . . . . . . . . Heat Surge 1 | . . . 1 . . . . . . . . . . . . . . . . . . . Overflow Damage 284 | . . . . . . 44 60 . . . 13 59 . . . . . 38 . 21 49 . Projectiles 54 | . . . . . . . . . . . 13 41 . . . . . . . . . . Explosions 230 | . . . . . . 44 60 . . . . 18 . . . . . 38 . 21 49 . Melee . | . . . . . . . . . . . . . . . . . . . . . . . Knockbacks 14 | . . . . . . . . . . 4 1 9 . . . . . . . . . . Impact . | . . . . . . . . . . . . . . . . . . . . . . . Kinetic 12 | . . . . . . . . . . 4 1 7 . . . . . . . . . . Secondary 2 | . . . . . . . . . . . . 2 . . . . . . . . . . Self-Inflicted Damage 889 | . . . 1 . . 126 41 . . 19 52 . . . . . . . . 141 413 96 Shots 15 | . . . 1 . . 3 1 . . . 1 . . . . . . . . 2 6 1 Rammed 6 | . 1 . . . . . . . . 2 . . . . . . . . . . . 3 Targets Rammed 18 | . 1 . . . . . . . . 2 . . . . . . . . . 12 . 3 Kicked 12 | . . . . . . . . . . . . . . . . . . . . 12 . . Crushed . | . . . . . . . . . . . . . . . . . . . . . . . Highest Temperature 500 | 60 260 121 261 171 . 308 500 476 82 467 23 467 261 188 174 236 244 403 340 257 54 228 Average Temperature 120 | 26 112 50 61 72 . 142 189 227 48 103 10 146 130 99 85 71 113 151 107 92 47 93 Received Heat Transfer 1676 | . 198 . 132 54 . 195 90 . . 69 18 168 . 12 . 42 9 150 . 116 153 270 Effects 26 | . . . . . . 4 9 2 . 4 . 2 2 . . . . 1 2 . . . Shutdowns 6 | . . . . . . . 1 1 . 2 . 2 . . . . . . . . . . Energy Bleed 5 | . . . . . . . 2 . . 1 . . . . . . . 1 1 . . . Interference 12 | . . . . . . 4 6 . . . . . 2 . . . . . . . . . Matter Decay 1 | . . . . . . . . 1 . . . . . . . . . . . . . . Short Circuit 1 | . . . . . . . . . . 1 . . . . . . . . . . . . Damage (minor) 1 | . . . . . . . . . . . . . . . . . . . 1 . . . Siege Activations . | . . . . . . . . . . . . . . . . . . . . . . . Robots Corrupted 3 | . . . . . . . . . . . . . . . . . . . . 2 . 1 Combat Hostiles 3 | . . . . . . . . . . . . . . . . . . . . 2 . 1 Parts Fried 3 | . . . . . . . . . . . . . . . . . . . . 2 . 1 Impact Corruptions . | . . . . . . . . . . . . . . . . . . . . . . . Robots Melted 3 | . . . . . . . 1 . . 1 . . . . . . . . . . . 1 Combat Hostiles 2 | . . . . . . . . . . 1 . . . . . . . . . . . 1 Parts Melted 42 | . 4 2 . . . 1 7 2 . 11 2 3 . . . 1 . 1 . 1 . 7 Heat Transferred 19971 | 185 1036 296 888 333 . 944 1950 600 . 4128 1300 1048 . . . 450 472 1150 1381 550 1445 1815 Parts Sabotaged 8 | . . . . . . . . . . . . . . . . . . 8 . . . . Parts Stolen . | . . . . . . . . . . . . . . . . . . . . . . . Parts Stripped 7 | . . . . . . . . . . . . . . . . . . . . . 7 . Power Chain Reactions 1 | . . . . . . . . . . . . 1 . . . . . . . . . . Alert | -11 -10 -10 -10 -8 -8 -6 -5 -5 -5 -5 -4 -4 -4 -4 -4 -3 -3 -3 -3 -2 -2 -1 ------- Run | Yrd Mat Min Sub Rec Scr Fac Fac Upp Upp War Pro Fac Upp Upp Zhi Pro Res Arm Lab Res Qua Acc Peak Influence 1575 | 20 178 187 . 185 . 543 979 . . . . 1575 . . . . 434 1074 . 1008 645 397 Initial 499 | . 13 69 . 12 . . 187 . . . . 160 . . . . 97 184 . . 499 334 Average 337 | 8 102 86 . 50 . 114 552 . . . . 486 . . . . 198 674 . 513 525 315 Maximum Alert Level 4 | . . . . . . 2 3 . . . . 4 . . . . 2 3 . 3 2 1 Low Security (%) 44 | 100 100 100 . 100 . 83 3 . . . . 21 . . . . 57 6 . 33 . 11 Level 1 18 | . . . . . . 1 12 . . . . 24 . . . . 34 2 . 3 12 88 Level 2 27 | . . . . . . 15 71 . . . . 34 . . . . 8 61 . 21 87 . Level 3 9 | . . . . . . . 13 . . . . 12 . . . . . 29 . 41 . . Level 4 . | . . . . . . . . . . . . 6 . . . . . . . . . . Level 5 . | . . . . . . . . . . . . . . . . . . . . . . . High Security . | . . . . . . . . . . . . . . . . . . . . . . . Max Security . | . . . . . . . . . . . . . . . . . . . . . . . Squads Dispatched 53 | . 2 . . . . 4 6 . . . . 12 . 1 . . 2 4 . 12 1 9 Investigation 17 | . 1 . . . . . 3 . . . . 7 . 1 . . 2 . . 3 . . Extermination 10 | . . . . . . 1 . . . . . 2 . . . . . 2 . 2 1 2 Reinforcement 15 | . 1 . . . . 1 3 . . . . 3 . . . . . 1 . 2 . 4 Assault 4 | . . . . . . 1 . . . . . . . . . . . 1 . 2 . . Garrison 1 | . . . . . . 1 . . . . . . . . . . . . . . . . Intercept 6 | . . . . . . . . . . . . . . . . . . . . 3 . 3 Searches Triggered . | . . . . . . . . . . . . . . . . . . . . . . . Construction Impeded 2 | . . . . . . 1 . . . . . . . . . . . . . 1 . . Haulers Reinforced . | . . . . . . . . . . . . . . . . . . . . . . . Active Scanning Responses . | . . . . . . . . . . . . . . . . . . . . . . . Cargo Convoy Interrupts . | . . . . . . . . . . . . . . . . . . . . . . . Stealth | -11 -10 -10 -10 -8 -8 -6 -5 -5 -5 -5 -4 -4 -4 -4 -4 -3 -3 -3 -3 -2 -2 -1 --------- Run | Yrd Mat Min Sub Rec Scr Fac Fac Upp Upp War Pro Fac Upp Upp Zhi Pro Res Arm Lab Res Qua Acc Distress Signals 15 | . . . . . . . 3 . . 1 . 5 . . . . . . . 2 1 3 Communications Jammed 9 | . . . . . . . . . . 7 . . . . . . 2 . . . . . Distress Signals 8 | . . . . . . . . . . 7 . . . . . . 1 . . . . . Times Spotted 412 | . 8 5 17 3 . 15 43 4 . 82 16 50 . 14 . 13 8 36 1 44 15 38 Peak Tracking Total 13 | . 2 3 2 1 . 8 6 4 . 12 7 10 . 13 . 6 3 6 1 13 4 13 Tactical Retreats 37 | . . . 3 . . 1 5 . . 5 2 6 . 2 . 1 2 2 . 4 . 4 Traps | -11 -10 -10 -10 -8 -8 -6 -5 -5 -5 -5 -4 -4 -4 -4 -4 -3 -3 -3 -3 -2 -2 -1 ------- Run | Yrd Mat Min Sub Rec Scr Fac Fac Upp Upp War Pro Fac Upp Upp Zhi Pro Res Arm Lab Res Qua Acc Traps Triggered 8 | . . . 2 . . . 1 . . . . 1 . . . . 4 . . . . . Indirectly . | . . . . . . . . . . . . . . . . . . . . . . . Trap Hack Attempts . | . . . . . . . . . . . . . . . . . . . . . . . Triggered . | . . . . . . . . . . . . . . . . . . . . . . . Disarmed . | . . . . . . . . . . . . . . . . . . . . . . . Reprogrammed . | . . . . . . . . . . . . . . . . . . . . . . . Reused . | . . . . . . . . . . . . . . . . . . . . . . . Traps Extracted . | . . . . . . . . . . . . . . . . . . . . . . . Installed . | . . . . . . . . . . . . . . . . . . . . . . . Triggered 21 | . . . . . . . . 1 . 19 . . 1 . . . . . . . . . Objects Rigged 3 | . . . . . . . . . . . . 3 . . . . . . . . . . Exploded 1 | . . . . . . . . . . . . 1 . . . . . . . . . . Machines | -11 -10 -10 -10 -8 -8 -6 -5 -5 -5 -5 -4 -4 -4 -4 -4 -3 -3 -3 -3 -2 -2 -1 ---------- Run | Yrd Mat Min Sub Rec Scr Fac Fac Upp Upp War Pro Fac Upp Upp Zhi Pro Res Arm Lab Res Qua Acc Machines Disabled 61 | . . . 3 . . 11 7 . . 1 . 11 . . 1 . 1 9 3 8 5 1 Max in Single Turn 7 | . . . 1 . . 7 2 . . 1 . 2 . . 1 . 1 1 1 2 1 1 Garrison Access 1 | . . . . . . 1 . . . . . . . . . . . . . . . . Energy Cycler 1 | . . . . . . . . . . . . . . . . . . . . . . 1 Machines Repaired . | . . . . . . . . . . . . . . . . . . . . . . . Machines Dismantled 1 | . . . . . . . . . . 1 . . . . . . . . . . . . Machines Sabotaged . | . . . . . . . . . . . . . . . . . . . . . . . Overloaded Fab Kills . | . . . . . . . . . . . . . . . . . . . . . . . Hacking | -11 -10 -10 -10 -8 -8 -6 -5 -5 -5 -5 -4 -4 -4 -4 -4 -3 -3 -3 -3 -2 -2 -1 --------- Run | Yrd Mat Min Sub Rec Scr Fac Fac Upp Upp War Pro Fac Upp Upp Zhi Pro Res Arm Lab Res Qua Acc Machines Accessed 74 | . 2 . 4 12 3 3 9 . . 3 1 12 1 1 5 . 9 2 1 3 1 2 Terminals 30 | . 2 . . 6 . 2 4 . . . 1 4 . 1 . . 6 1 . 1 1 1 Fabricators 7 | . . . . . . . 2 . . . . 3 . . . . 1 1 . . . . Repair Stations 2 | . . . . . . 1 . . . . . 1 . . . . . . . . . . Recycling Units 15 | . . . . 6 . . 1 . . . . 4 . . . . 2 . . 1 . 1 Scanalyzers 2 | . . . . . . . 1 . . . . . . . . . . . . 1 . . Garrison Access 1 | . . . . . . . 1 . . . . . . . . . . . . . . . Total Hacks 197 | . 7 . 9 23 32 5 30 . . 4 1 27 1 4 17 . 20 5 1 6 2 3 Successful 134 | . 1 . 9 17 32 2 16 . . 4 1 13 1 4 17 . 12 2 1 1 1 . Failed 63 | . 6 . . 6 . 3 14 . . . . 14 . . . . 8 3 . 5 1 3 Catastrophic 12 | . 2 . . . . 2 2 . . . . 2 . . . . 1 . . . 1 2 Database Lockouts . | . . . . . . . . . . . . . . . . . . . . . . . Manual 72 | . 2 . . 19 . 3 9 . . . . 17 . . . . 17 . 1 1 . 3 Terminals 76 | . 7 . . 13 . 2 18 . . . 1 9 . 4 . . 14 2 . 3 2 1 Fabricators 23 | . . . . . . . 8 . . . . 10 . . . . 2 3 . . . . Repair Stations 6 | . . . . . . 3 . . . . . 3 . . . . . . . . . . Recycling Units 23 | . . . . 10 . . 1 . . . . 5 . . . . 4 . . 1 . 2 Scanalyzers 4 | . . . . . . . 2 . . . . . . . . . . . . 2 . . Garrison Access 1 | . . . . . . . 1 . . . . . . . . . . . . . . . Terminal Hacks 78 | . . . 9 . 32 1 6 . . 4 1 1 1 4 17 . . . 1 . 1 . Record 47 | . . . 6 . 26 . . . . 3 1 . . 4 6 . . . 1 . . . Part Schematic 3 | . . . . . . . . . . . . . . . 3 . . . . . . . Robot Analysis 11 | . . . . . 6 . 1 . . . . . . . 4 . . . . . . . Prototype ID Bank 4 | . . . . . . . . . . . . . . . 4 . . . . . . . Open Door 3 | . . . 1 . . . . . . 1 . . 1 . . . . . . . . . Branch Access Points 1 | . . . . . . . . . . . . 1 . . . . . . . . . . Terminal Index 1 | . . . . . . . 1 . . . . . . . . . . . . . . . Alert Level 1 | . . . . . . . 1 . . . . . . . . . . . . . . . Unreport Threat 3 | . . . . . . 1 2 . . . . . . . . . . . . . . . Zone Layout 2 | . . . . . . . 1 . . . . . . . . . . . . . 1 . Derelict Proto ID Bank 1 | . . . 1 . . . . . . . . . . . . . . . . . . . Release Object 1 | . . . 1 . . . . . . . . . . . . . . . . . . . Fabricator Hacks 11 | . . . . . . . 3 . . . . 5 . . . . 1 2 . . . . Network Status 3 | . . . . . . . 1 . . . . 1 . . . . 1 . . . . . Load Schematic 6 | . . . . . . . 2 . . . . 3 . . . . . 1 . . . . Build 2 | . . . . . . . . . . . . 1 . . . . . 1 . . . . Repair Station Hacks . | . . . . . . . . . . . . . . . . . . . . . . . Recycling Unit Hacks 4 | . . . . 4 . . . . . . . . . . . . . . . . . . Report Inventory 3 | . . . . 3 . . . . . . . . . . . . . . . . . . Retrieve Components 1 | . . . . 1 . . . . . . . . . . . . . . . . . . Scanalyzer . | . . . . . . . . . . . . . . . . . . . . . . . Garrison Access Hacks . | . . . . . . . . . . . . . . . . . . . . . . . Unauthorized Hacks 41 | . 1 . . 13 . 1 7 . . . . 7 . . . . 11 . . 1 . . Terminals 24 | . 1 . . 7 . . 6 . . . . 2 . . . . 8 . . . . . Assimilate 1 | . . . . . . . 1 . . . . . . . . . . . . . . . Botnet 9 | . . . . 2 . . 4 . . . . 1 . . . . 2 . . . . . Operators 2 | . . . . . . . 1 . . . . . . . . . 1 . . . . . Skim 12 | . 1 . . 5 . . . . . . . 1 . . . . 5 . . . . . Fabricators 2 | . . . . . . . . . . . . 1 . . . . 1 . . . . . Report 1 | . . . . . . . . . . . . . . . . . 1 . . . . . Recompile 1 | . . . . . . . . . . . . 1 . . . . . . . . . . Repair Stations 9 | . . . . . . 1 1 . . . . 4 . . . . 2 . . 1 . . Mechanics 1 | . . . . . . 1 . . . . . . . . . . . . . . . . Recycling Units 6 | . . . . 6 . . . . . . . . . . . . . . . . . . Tunnel 6 | . . . . 6 . . . . . . . . . . . . . . . . . . Scrapoids 8 | . . . . . . . 1 . . . . 4 . . . . 2 . . 1 . . Scanalyzers . | . . . . . . . . . . . . . . . . . . . . . . . Garrison Access . | . . . . . . . . . . . . . . . . . . . . . . . Data Cores Recovered . | . . . . . . . . . . . . . . . . . . . . . . . Used . | . . . . . . . . . . . . . . . . . . . . . . . Hacking Detections 42 | . 2 . . 8 . 3 8 . . . . 7 . 1 . . 6 2 . 2 1 2 Full Trace Events 6 | . 1 . . 1 . . 1 . . . . 1 . 1 . . . . . 1 . . Feedback Events . | . . . . . . . . . . . . . . . . . . . . . . . Feedback Blocked . | . . . . . . . . . . . . . . . . . . . . . . . Robot Schematics Acquired . | . . . . . . . . . . . . . . . . . . . . . . . Robots Built . | . . . . . . . . . . . . . . . . . . . . . . . Authchips . | . . . . . . . . . . . . . . . . . . . . . . . Time . | . . . . . . . . . . . . . . . . . . . . . . . Total Robot Build Rating . | . . . . . . . . . . . . . . . . . . . . . . . Part Schematics Acquired 63 | . . . . . 17 4 6 1 1 9 . 3 1 1 3 . . . . 1 4 12 Parts Built 2 | . . . . . . . . . . . . 1 . . . . . 1 . . . . Authchips 2 | . . . . . . . . . . . . 1 . . . . . 1 . . . . Time 218 | . . . . . . . . . . . . 187 . . . . . 31 . . . . Total Part Build Rating 9 | . . . . . . . . . . . . 7 . . . . . 2 . . . . Parts Repaired . | . . . . . . . . . . . . . . . . . . . . . . . Time . | . . . . . . . . . . . . . . . . . . . . . . . Parts Recycled . | . . . . . . . . . . . . . . . . . . . . . . . Recycled Matter . | . . . . . . . . . . . . . . . . . . . . . . . Retrieved Matter . | . . . . . . . . . . . . . . . . . . . . . . . Retrieved Components 1 | . . . . 1 . . . . . . . . . . . . . . . . . . Parts Scanalyzed . | . . . . . . . . . . . . . . . . . . . . . . . Part Schematics Acquired . | . . . . . . . . . . . . . . . . . . . . . . . Parts Damaged . | . . . . . . . . . . . . . . . . . . . . . . . Bothacking | -11 -10 -10 -10 -8 -8 -6 -5 -5 -5 -5 -4 -4 -4 -4 -4 -3 -3 -3 -3 -2 -2 -1 ------------ Run | Yrd Mat Min Sub Rec Scr Fac Fac Upp Upp War Pro Fac Upp Upp Zhi Pro Res Arm Lab Res Qua Acc Used RIF Installer . | . . . . . . . . . . . . . . . . . . . . . . . Robots Hacked . | . . . . . . . . . . . . . . . . . . . . . . . Non-combat . | . . . . . . . . . . . . . . . . . . . . . . . Combat . | . . . . . . . . . . . . . . . . . . . . . . . Robot Hacks Applied . | . . . . . . . . . . . . . . . . . . . . . . . Relay Couplers Released 4 | . . . . . . 1 . . . . . 3 . . . . . . . . . . Machine Destruction 1 | . . . . . . 1 . . . . . . . . . . . . . . . . Programmers 3 | . . . . . . . . . . . . 3 . . . . . . . . . . Fabnet Peak Effective % . | . . . . . . . . . . . . . . . . . . . . . . . Robots Rewired 10 | . . . . . . . . . . 5 . 1 . . . . . 4 . . . . Allies Hacked 6 | . . . . . . . . . . . . 1 . . . . . 2 . 3 . . Hacks Repelled . | . . . . . . . . . . . . . . . . . . . . . . . Allies | -11 -10 -10 -10 -8 -8 -6 -5 -5 -5 -5 -4 -4 -4 -4 -4 -3 -3 -3 -3 -2 -2 -1 -------- Run | Yrd Mat Min Sub Rec Scr Fac Fac Upp Upp War Pro Fac Upp Upp Zhi Pro Res Arm Lab Res Qua Acc Total Allies 75 | . . 3 . . 1 . 7 . . 5 . 21 . . . . 10 4 . 5 . 19 Largest Group 9 | . . 3 3 1 2 2 5 . . 5 . 8 3 3 3 3 8 6 . 5 . 9 Highest-Rated Group 518 | . . 40 40 7 85 85 244 . . 248 . 376 137 137 137 137 518 384 . 323 . 121 Highest-Rated Ally 108 | . . 16 16 7 78 78 108 . . 68 . 47 47 47 47 47 67 64 . 67 . 15 Total Orders 6 | . . . . . 2 . . . . . . . . 2 2 . . . . . . . STAY 3 | . . . . . 1 . . . . . . . . 1 1 . . . . . . . FOLLOW 3 | . . . . . 1 . . . . . . . . 1 1 . . . . . . . Ally Attacks 613 | . . 6 17 . . 5 76 . . 50 . 194 5 3 . 10 48 86 . 72 . 41 Total Damage 14349 | . . 69 196 . . 98 1847 . . 1785 . 3876 105 97 . 187 1172 2356 . 2135 . 426 Kills 91 | . . 2 1 . . . 15 . . 10 . 24 2 2 . 1 11 10 . 12 . 1 Allies Corrupted 4 | . . . . . . . . . . . . 1 . . . . 1 2 . . . . Allies Melted 1 | . . . . . . 1 . . . . . . . . . . . . . . . . Intel | -11 -10 -10 -10 -8 -8 -6 -5 -5 -5 -5 -4 -4 -4 -4 -4 -3 -3 -3 -3 -2 -2 -1 ------- Run | Yrd Mat Min Sub Rec Scr Fac Fac Upp Upp War Pro Fac Upp Upp Zhi Pro Res Arm Lab Res Qua Acc Robot Analysis Total 11 | . . . . . 6 . 1 . . . . . . . 4 . . . . . . . Derelict Logs Recovered 16 | . . 1 2 . 5 . . 2 1 . 2 . 2 1 . . . . . . . . Drone Launches . | . . . . . . . . . . . . . . . . . . . . . . . Drone Recoveries . | . . . . . . . . . . . . . . . . . . . . . . . Exploration | -11 -10 -10 -10 -8 -8 -6 -5 -5 -5 -5 -4 -4 -4 -4 -4 -3 -3 -3 -3 -2 -2 -1 ------------- Run | Yrd Mat Min Sub Rec Scr Fac Fac Upp Upp War Pro Fac Upp Upp Zhi Pro Res Arm Lab Res Qua Acc Turns Passed 26499 | 240 399 603 2424 926 11584 664 741 328 176 1326 310 946 571 342 217 582 540 774 367 819 665 955 Spaces Moved 19578 | 123 192 429 1712 531 5805 364 873 515 273 1592 475 1281 963 583 280 650 478 489 206 583 418 763 Core 158 | 3 . . . . . . . . . . . . . . . . . . . . . 155 Treads 4656 | 120 192 9 . . 4057 278 . . . . . . . . . . . . . . . . Legs 1493 | . . . . . . . . . . . . . . . . . . 474 206 355 301 157 Wheels 5864 | . . 420 1712 531 1748 10 . . . . . . . . . 644 478 15 . . . 306 Hover 7407 | . . . . . . 76 873 515 273 1592 475 1281 963 583 280 6 . . . 228 117 145 Flight . | . . . . . . . . . . . . . . . . . . . . . . . Fastest Speed 38 | 50 160 100 100 165 100 77 55 58 58 43 46 39 39 38 40 45 70 80 118 76 68 50 Average Speed 115 | 158 160 101 119 165 193 146 58 58 58 49 46 47 45 44 44 80 78 117 118 103 109 97 Slowest Speed 295 | 160 160 160 295 295 295 250 114 58 58 101 49 132 46 46 45 125 80 260 118 136 190 170 Overloaded Moves . | . . . . . . . . . . . . . . . . . . . . . . . Propulsion Burnouts . | . . . . . . . . . . . . . . . . . . . . . . . Robots Hopped . | . . . . . . . . . . . . . . . . . . . . . . . Cave-ins Triggered . | . . . . . . . . . . . . . . . . . . . . . . . Teleports 5 | . . . . . . . . . . . . . . . . . . . . 1 3 1 Exploration Rate (%) 54 | 10 33 93 53 99 94 10 23 69 47 93 66 31 97 81 62 81 14 37 96 16 31 26 Regions Visited 22 Branch Regions 15 Pre-discovered Areas 20 | . . . 1 7 5 . . . 1 . 1 . . . 3 . 2 . . . . . Known Exits Taken 16 | . . . 1 1 . 1 . 1 1 . 1 1 1 1 1 1 1 1 1 1 1 . Unknown Exits Taken 6 | 1 1 1 . . 1 . 1 . . 1 . . . . . . . . . . . . Scrap Searched 21 | . . 1 5 . 5 . . 1 3 . . . 3 2 . 1 . . . . . . Spaces Dug 57 | . . . . . . . 4 . 2 . 6 4 . 1 . 3 1 33 . 3 . . Terrain Destroyed 835 | . . . 9 . . 132 88 3 2 47 35 171 . 4 1 45 1 97 2 69 100 29 Melee . | . . . . . . . . . . . . . . . . . . . . . . . Projectile 312 | . . . . . . . 28 3 2 47 32 59 . 4 1 45 1 39 2 41 7 1 AOE 523 | . . . 9 . . 132 60 . . . 3 112 . . . . . 58 . 28 93 28 Terrain Rammed . | . . . . . . . . . . . . . . . . . . . . . . . Walls Destroyed . | . . . . . . . . . . . . . . . . . . . . . . . Machines Disabled . | . . . . . . . . . . . . . . . . . . . . . . . Actions | -11 -10 -10 -10 -8 -8 -6 -5 -5 -5 -5 -4 -4 -4 -4 -4 -3 -3 -3 -3 -2 -2 -1 --------- Run | Yrd Mat Min Sub Rec Scr Fac Fac Upp Upp War Pro Fac Upp Upp Zhi Pro Res Arm Lab Res Qua Acc Total 22713 | 147 233 577 1981 560 6165 449 1064 536 287 2058 525 1554 1096 664 370 692 627 638 302 729 568 891 Wait 1421 | 1 4 129 136 10 190 33 84 11 4 170 8 117 132 75 55 10 113 23 19 23 54 20 Move 19556 | 122 191 428 1711 530 5804 363 871 514 272 1592 474 1280 962 582 279 649 477 488 205 582 417 763 Hop . | . . . . . . . . . . . . . . . . . . . . . . . Pick Up 198 | 7 4 2 25 3 80 3 11 . 1 14 . 10 . . 2 2 2 5 8 3 14 2 Fast Attach 232 | 7 . . 4 . 8 11 21 1 2 36 . 18 . 2 9 3 10 21 7 22 20 30 Attach 42 | . . 1 3 . 1 5 1 . 1 1 2 6 . . 5 1 1 1 1 3 9 . Detach 30 | . . . 1 . 1 2 1 . . 2 2 2 . 1 4 2 . . . 4 5 3 Swap 81 | . 2 2 6 2 2 . 4 3 1 16 . 10 2 . . 1 4 13 2 8 3 . Drop 294 | . 3 3 20 4 79 5 22 . 2 58 . 19 . 1 9 2 7 15 12 15 8 10 Fire 702 | 10 28 12 71 11 . 27 45 7 4 71 39 76 . 3 7 22 13 59 48 54 35 60 Melee 6 | . . . . . . . 3 . . . . . . . . . . . . . 3 . Ram 4 | . . . . . . . . . . 1 . . . . . . . . . . . 3 Kick 12 | . . . . . . . . . . . . . . . . . . . . 12 . . Crush 1 | . 1 . . . . . . . . . . . . . . . . . . . . . Escape Stasis 1 | . . . . . . . 1 . . . . . . . . . . . . . . . Rewire 118 | . . . . . . . . . . 89 . 13 . . . . . 13 . 3 . . Trap 3 | . . . . . . . . . . . . 3 . . . . . . . . . . Miscellaneous 12 | . . . 4 . . . . . . 8 . . . . . . . . . . . . Route ------- -11/Scrapyard -10/Materials (discovered 2 exits: [*Mat] / [*Min]) -10/Mines (discovered 3 exits: [*Mat x2] / *Sub) -10/Subcaves -8/Recycling (discovered 2 exits: *Fac / *Scr) -8/Scraptown (discovered 2 exits: *Fac x2) -6/Factory (discovered 6 exits: *Fac x4 / Low x2) -5/Factory (discovered 3 exits: *Fac x2 / [*Upp]) -5/Upper Caves -5/Upper Caves (discovered 2 exits: Fac / *War) -5/Warlord -4/Proximity Caves -4/Factory (discovered 6 exits: *Res x2 / *Upp x2 / Ext x2) -4/Upper Caves -4/Upper Caves (discovered 2 exits: *Res / *Zhi) -4/Zhirov -3/Proximity Caves -3/Research (discovered 5 exits: Res x3 / *Arm / Tes) -3/Armory (discovered 2 exits: *Res / *Lab) -3/Lab -2/Research (discovered 2 exits: Acc / *Qua) -2/Quarantine -1/Access History --------- Turn | Location | Event 10 | -11/Scrapyard | Discovered new exit (range 16) 241 | -11/Scrapyard | Entered Materials 318 | -10/Materials | Build established: Mutant 495 | -10/Materials | Discovered new exit (range 16) 563 | -10/Materials | Discovered new exit (range 3) 640 | -10/Materials | Entered Mines 913 | -10/Mines | Received a Rocket Launcher from a helpful Derelict 955 | -10/Mines | Assisted by bots powering up and referring to "LRC-V3" 1022 | -10/Mines | Discovered new exit (range 8) 1067 | -10/Mines | Discovered new exit (range 13) 1236 | -10/Mines | Discovered new exit (range 4) 1243 | -10/Mines | Entered Subcaves 1243 | -10/Subcaves | Accompanied by 3 allies 1394 | -10/Subcaves | Visited 4L-MR0's lab 1506 | -10/Subcaves | Ambushed by Subdweller buried in earth 1681 | -10/Subcaves | Learned location of Storage (-8) 1781 | -10/Subcaves | Visited Clippyterm 1784 | -10/Subcaves | Learned Research security intel 1784 | -10/Subcaves | Learned Research machine intel 1814 | -10/Subcaves | Shifting Twisted Machinery released Sub. Monowheel 1824 | -10/Subcaves | Shifting Twisted Machinery released Mak. Thermal Plating 2029 | -10/Subcaves | Ambushed by angry Subdweller bent on revenge 2453 | -10/Subcaves | Identified exit to Recycling 2454 | -10/Subcaves | A swath of the cavern ceiling suddenly collapsed 2593 | -10/Subcaves | Shifting Twisted Machinery released Sub. Shrapnel Launcher 2597 | -10/Subcaves | Shifting Twisted Machinery released Sub. Machine Gun 2622 | -10/Subcaves | Build established: Scavenger-Mutant 2708 | -10/Subcaves | Core integrity fell below 50% 2720 | -10/Subcaves | Disturbed a concealed Subdweller 3070 | -10/Subcaves | Found Arachnoskeleton 3358 | -10/Subcaves | Build established: Hauler-Mutant 3463 | -10/Subcaves | Found SUBCON Basin 3667 | -10/Subcaves | Entered Recycling 3667 | -8/Recycling | Accompanied by 1 ally 4269 | -8/Recycling | Learned location of 1 exit from Lower Caves 4321 | -8/Recycling | Learned 4 Factory zone layouts 4363 | -8/Recycling | Learned Storage emergency access door positions 4397 | -8/Recycling | Learned Factory recycling unit intel 4423 | -8/Recycling | Learned location of 2 exits from Factory 4441 | -8/Recycling | Learned location of 1 exit from Storage 4449 | -8/Recycling | Learned 4 Factory zone layouts 4456 | -8/Recycling | Discovered new exit (range 11) 4468 | -8/Recycling | Learned Storage trap positions 4496 | -8/Recycling | Identified exit to Scraptown 4530 | -8/Recycling | Scanned before Scraplab entrance 4535 | -8/Recycling | Learned 2 Storage zone layouts 4555 | -8/Recycling | Entered Scraplab 4586 | -8/Recycling | Learned location of Zion (-7) 4593 | -8/Recycling | Entered Scraptown 4593 | -8/Scraptown | Accompanied by 1 ally 4715 | -8/Scraptown | Visited SPCMW 4779 | -8/Scraptown | Scanned Subdweller tech in exchange for log data 4784 | -8/Scraptown | Learned location of 1 exit from Research 4788 | -8/Scraptown | Learned Research stockpile data 4789 | -8/Scraptown | Learned location of 1 exit from Proximity Caves 5916 | -8/Scraptown | Visited Junk Repository 6001 | -8/Scraptown | Visited CPS Storage 6046 | -8/Scraptown | Visited TADAMA 6137 | -8/Scraptown | Visited Artisan Demo Area 6329 | -8/Scraptown | Visited Awakened 6426 | -8/Scraptown | Visited Cyclists 6479 | -8/Scraptown | Visited UFD Registry 6479 | -8/Scraptown | Registered with UFD as "Spikecutter" 6535 | -8/Scraptown | Entered Cyclist Reading Room 6704 | -8/Scraptown | Discovered new exit (range 7) 7185 | -8/Scraptown | Visited Botcube Research 7206 | -8/Scraptown | Found Lrg. Botcube 7293 | -8/Scraptown | Visited Derelict Rescue Squad 7587 | -8/Scraptown | Discovered new exit (range 3) 7858 | -8/Scraptown | Visited Infowarlord's Domain 8064 | -8/Scraptown | Visited Cartography Club 8716 | -8/Scraptown | Visited Science Testing Area 8793 | -8/Scraptown | Visited Analyses Database 8861 | -8/Scraptown | Visited LU-1G1's Boring Crew 9335 | -8/Scraptown | Build established: Derelict-Mutant 9578 | -8/Scraptown | Tech Extrapolator generated special schematic: Energy Deflector 9781 | -8/Scraptown | Tech Extrapolator generated special schematic: Machine Rigger 10117 | -8/Scraptown | Visited Curators Association 10672 | -8/Scraptown | Found Surveybot 17 Chip 10727 | -8/Scraptown | Learned location of Archives (-4) 10727 | -8/Scraptown | Learned 4 Storage zone layouts 10727 | -8/Scraptown | Learned 4 Recycling zone layouts 10727 | -8/Scraptown | Learned 16 Lower Caves zone layouts 10727 | -8/Scraptown | Learned 8 Upper Caves zone layouts 10727 | -8/Scraptown | Learned 12 Upper Caves zone layouts 10727 | -8/Scraptown | Learned 16 Upper Caves zone layouts 10727 | -8/Scraptown | Learned 20 Proximity Caves zone layouts 10727 | -8/Scraptown | Learned 24 Proximity Caves zone layouts 10727 | -8/Scraptown | Learned 4 Hub_04(d) zone layouts 10727 | -8/Scraptown | Learned Storage emergency access door positions 10727 | -8/Scraptown | Learned location of 2 exits from Research 10727 | -8/Scraptown | Learned location of 1 exit from Lower Caves 10727 | -8/Scraptown | Learned location of 3 exits from Upper Caves 10761 | -8/Scraptown | Found Deep Structural Scanner 12058 | -8/Scraptown | Found Scrap Suit 12135 | -8/Scraptown | Found Exp. Sensor Array 14589 | -8/Scraptown | Lrg. Botcube activated 14623 | -8/Scraptown | Lrg. Botcube completed mutation into wheeled form, armed with 4 guns. 16177 | -8/Scraptown | Entered Factory 16177 | -6/Factory | Accompanied by 2 allies 16177 | -6/Factory | Evolved 8 slots: Power x1, Propulsion x2, Utility x4, Weapon x1 16178 | -6/Factory | Identified exit to Factory 16179 | -6/Factory | Identified exit to Lower Caves 16181 | -6/Factory | Loaded intel: 6 recycling unit locations 16497 | -6/Factory | Found Lrg. Botcube 16725 | -6/Factory | Garrison activated, responded to threat 16764 | -6/Factory | Destroyed 9 combat bots 16768 | -6/Factory | Lost 6 parts (2n2u2w) 16801 | -6/Factory | Tech Extrapolator generated special schematic: Active Sensor Spoofer 16841 | -6/Factory | Entered another Factory area 16841 | -5/Factory | Evolved 2 slots: Propulsion x1, Utility x1 16842 | -5/Factory | Identified exit to Factory 16925 | -5/Factory | Scrapoids reinforcements arrived? 16961 | -5/Factory | Found Scrap Suit 16992 | -5/Factory | Lrg. Botcube activated 16993 | -5/Factory | Lost 5 allies 17022 | -5/Factory | Lrg. Botcube completed mutation into wheeled form, armed with 3 guns, 1 melee weapon. 17233 | -5/Factory | Discovered new exit (range 16) 17246 | -5/Factory | Build established: Scavenger-Scrapper 17335 | -5/Factory | Discovered exit to Factory (range 16) 17559 | -5/Factory | Destroyed 8 combat bots 17582 | -5/Factory | Entered Upper Caves 17583 | -5/Upper Caves | Identified exit to Upper Caves 17658 | -5/Upper Caves | Learned Factory interactive machine intel 17747 | -5/Upper Caves | Learned Factory machine intel 17910 | -5/Upper Caves | Entered another Upper Caves area 17911 | -5/Upper Caves | Identified exit to Warlord 18046 | -5/Upper Caves | Spotted B-75 Beast 18077 | -5/Upper Caves | Found Alien Artifact 18077 | -5/Upper Caves | Identified Core Expander 18077 | -5/Upper Caves | Installed Core Expander, added new Utility slot 18086 | -5/Upper Caves | Entered Warlord 18108 | -5/Warlord | System corruption cleaned by Quarantine Array 18126 | -5/Warlord | Discovered new exit (range 15) 18258 | -5/Warlord | Found Prototype Special Weapon 18258 | -5/Warlord | Identified RU-N14's Throwing Claymores v3 18263 | -5/Warlord | Found RU-N14's Throwing Claymores v3 18377 | -5/Warlord | Build established: Scavenger-Gunner 18511 | -5/Warlord | Warlord's base attacked by MAIN.C 18546 | -5/Warlord | Rebuked by Warlord 18624 | -5/Warlord | Found Prototype Reactor 18624 | -5/Warlord | Identified Vortex Chain Reactor 18703 | -5/Warlord | Found Prototype Energy Cannon 18703 | -5/Warlord | Identified Vortex Driver 18706 | -5/Warlord | Found Prototype Energy Cannon 18706 | -5/Warlord | Identified Vortex Cannon 18709 | -5/Warlord | Found Prototype Energy Gun 18709 | -5/Warlord | Identified Vortex Rail 18711 | -5/Warlord | Found Vortex Rail 18861 | -5/Warlord | Warlord forces counterattacked 18867 | -5/Warlord | Lost 3 allies 18932 | -5/Warlord | Lost 6 allies 18945 | -5/Warlord | Spotted B-86 Titan 18956 | -5/Warlord | Spotted Striker 18999 | -5/Warlord | Lost 4 allies 19000 | -5/Warlord | Spotted Striker 19005 | -5/Warlord | Destroyed Striker 19027 | -5/Warlord | Spotted Striker 19028 | -5/Warlord | P-70 Sage assimilated allied SA-RPI(g) 19029 | -5/Warlord | Spotted Executioner 19054 | -5/Warlord | P-70 Sage assimilated allied 1P-RS2(g) 19059 | -5/Warlord | Destroyed Executioner 19122 | -5/Warlord | Spotted Striker 19155 | -5/Warlord | Lost 18 allies 19186 | -5/Warlord | Warlord base infiltrated, sounded retreat 19190 | -5/Warlord | Found Prototype Ballistic Cannon 19190 | -5/Warlord | Identified Hvy. Autocannon 19264 | -5/Warlord | Spotted B-86 Titan 19271 | -5/Warlord | Spotted B-75 Beast 19277 | -5/Warlord | Found Prototype Device 19277 | -5/Warlord | Identified Exp. Shock Absorption System 19327 | -5/Warlord | Spotted Executioner 19333 | -5/Warlord | Destroyed Executioner 19368 | -5/Warlord | Found Prototype Launcher 19368 | -5/Warlord | Identified Chain Missile Launcher 19412 | -5/Warlord | Spotted Striker 19412 | -5/Warlord | Entered Proximity Caves 19618 | -4/Proximity Caves | Attracted the attention of an 0b10 checkpoint 19650 | -4/Proximity Caves | Learned Research stockpile data 19722 | -4/Proximity Caves | Entered Factory 19722 | -4/Factory | Evolved 2 slots: Propulsion x1, Utility x1 19723 | -4/Factory | Identified exit to Research 19724 | -4/Factory | Loaded intel: 270 machine locations 19725 | -4/Factory | Loaded intel: 54 interactive machine locations 19963 | -4/Factory | Build established: Scavenger-Mutant 19992 | -4/Factory | Scrapoids reinforcements arrived? 20019 | -4/Factory | Found Scrap Suit 20035 | -4/Factory | Lost 5 allies 20115 | -4/Factory | Fabricated Machine Rigger? 20331 | -4/Factory | Identified exit to Upper Caves 20331 | -4/Factory | Identified exit to Extension 20339 | -4/Factory | Scrapoid reinforcements arrived 20524 | -4/Factory | Scrapoids reinforcements arrived? 20593 | -4/Factory | Scrapoid reinforcements arrived 20593 | -4/Factory | Found Scrap Suit 20638 | -4/Factory | Lost 7 allies 20646 | -4/Factory | Lost 3 parts (1n2w) 20658 | -4/Factory | Build established: Scavenger-Tank 20668 | -4/Factory | Entered Upper Caves 20668 | -4/Upper Caves | Accompanied by 3 allies 20863 | -4/Upper Caves | Tech Extrapolator generated special schematic: Heat Bomb Trap 20991 | -4/Upper Caves | Build established: Scavenger-Scout 20994 | -4/Upper Caves | Discovered new exit (range 14) 21000 | -4/Upper Caves | Learned 12 Research zone layouts 21228 | -4/Upper Caves | Identified exit to Upper Caves 21239 | -4/Upper Caves | Entered another Upper Caves area 21239 | -4/Upper Caves | Accompanied by 3 allies 21255 | -4/Upper Caves | Encountered a Warlord checkpoint 21287 | -4/Upper Caves | Discovered exit to Research (range 7) 21406 | -4/Upper Caves | Learned Research stockpile data 21515 | -4/Upper Caves | Attracted the attention of an 0b10 base 21516 | -4/Upper Caves | Learned Factory terminal intel 21516 | -4/Upper Caves | Learned 6 Proximity Caves zone layouts 21516 | -4/Upper Caves | Learned location of 1 exit from Factory 21563 | -4/Upper Caves | Discovered new exit (range 10) 21567 | -4/Upper Caves | Identified exit to Zhirov 21581 | -4/Upper Caves | Entered Zhirov 21581 | -4/Zhirov | Accompanied by 3 allies 21583 | -4/Zhirov | Discovered new exit (range 3) 21591 | -4/Zhirov | Met Zhirov 21601 | -4/Zhirov | Learned location of Command (-1) 21608 | -4/Zhirov | Zhirov requested help retrieving the SGEMP Prototype 21622 | -4/Zhirov | Found Alien Artifact 21622 | -4/Zhirov | Identified Integrated Dissipator 21622 | -4/Zhirov | Installed Integrated Dissipator, increased core heat dissipation (+20) 21631 | -4/Zhirov | Found Alien Artifact 21779 | -4/Zhirov | Identified exit to Proximity Caves 21798 | -4/Zhirov | Entered Proximity Caves 21798 | -3/Proximity Caves | Accompanied by 3 allies 21839 | -3/Proximity Caves | Lost 3 allies 22136 | -3/Proximity Caves | Build established: Scavenger-Scrapper 22320 | -3/Proximity Caves | Spotted B-86 Titan 22380 | -3/Proximity Caves | Entered Research 22380 | -3/Research | Evolved 2 slots: Power x1, Propulsion x1 22381 | -3/Research | Identified exit to Armory 22382 | -3/Research | Identified exit to Research 22382 | -3/Research | Identified exit to Testing 22386 | -3/Research | Loaded intel: 121 machine locations 22510 | -3/Research | Spotted B-86 Titan 22690 | -3/Research | Scrapoids reinforcements arrived? 22775 | -3/Research | Loaded intel: 63 trap records 22775 | -3/Research | Found Scrap Suit 22804 | -3/Research | Learned Quarantine security intel 22824 | -3/Research | Learned Quarantine scanalyzer intel 22834 | -3/Research | Learned Access recycling unit intel 22839 | -3/Research | Learned location of 1 exit from Quarantine 22840 | -3/Research | Scrapoid reinforcements arrived 22920 | -3/Research | Entered Armory 22920 | -3/Armory | Accompanied by 6 allies 23079 | -3/Armory | Lost 3 allies 23166 | -3/Armory | Build established: Scavenger-Skirmisher 23167 | -3/Armory | Found Prototype Device 23167 | -3/Armory | Identified Exp. Thermal Shield 23383 | -3/Armory | Fabricated Multitool (x1) 23420 | -3/Armory | First assault squad dispatched 23434 | -3/Armory | Discovered exit to Research (range 16) 23514 | -3/Armory | Destroyed 8 combat bots 23563 | -3/Armory | Discovered new exit (range 11) 23598 | -3/Armory | Lost 3 allies 23643 | -3/Armory | Identified exit to Lab 23694 | -3/Armory | Entered Lab 23694 | -3/Lab | Discovered exit to Research (range 9) 23709 | -3/Lab | Unable to decrypt terminal 23709 | -3/Lab | Unable to decrypt terminal 23709 | -3/Lab | Unable to decrypt terminal 23710 | -3/Lab | Unable to decrypt terminal 23710 | -3/Lab | Opened the door to a hidden lab 23711 | -3/Lab | Gained access to the hidden lab's interior 23714 | -3/Lab | Detected by scanners 23723 | -3/Lab | Confronted by A5 23797 | -3/Lab | Destroyed A5 23897 | -3/Lab | Unable to decrypt terminal 23936 | -3/Lab | Found Alien Artifact 23936 | -3/Lab | Identified Integrated Reactor 23936 | -3/Lab | Installed Integrated Reactor, increased core energy generation (+10) 23963 | -3/Lab | Found Prototype Device 23963 | -3/Lab | Identified AEGIS Remote Shield 23975 | -3/Lab | Found Prototype Energy Gun 23975 | -3/Lab | Identified Tachyon Dispersion Ray 23982 | -3/Lab | Found Prototype Hackware 23992 | -3/Lab | Found Tachyon Dispersion Ray 24013 | -3/Lab | Found Prototype Special Weapon 24039 | -3/Lab | Found Alien Artifact 24061 | -3/Lab | Entered Research 24061 | -2/Research | Evolved 2 slots: Utility x2 24062 | -2/Research | Identified exit to Access 24062 | -2/Research | Identified exit to Quarantine 24139 | -2/Research | Spotted B-90 Cyclops 24343 | -2/Research | Scrapoid reinforcements arrived 24356 | -2/Research | P-80 Master assimilated allied 02R36-D 24375 | -2/Research | Found Scrap Suit 24519 | -2/Research | Intercept squad dispatched 24535 | -2/Research | Spotted Tracker 24536 | -2/Research | Spotted Tracker 24549 | -2/Research | Build established: Scavenger-Tank 24558 | -2/Research | Spotted Combat Programmer 24566 | -2/Research | Destroyed Tracker 24571 | -2/Research | Spotted Combat Programmer 24572 | -2/Research | Destroyed Tracker 24573 | -2/Research | Lost 3 allies 24576 | -2/Research | Identified Transdimensional Reconstructor (x2) 24576 | -2/Research | Warped through subspace 24593 | -2/Research | Destroyed 8 combat bots 24614 | -2/Research | Tech Extrapolator generated special schematic: Telecube 24677 | -2/Research | Lost 15 parts (3p4n5u3w) 24811 | -2/Research | First assault squad dispatched 24880 | -2/Research | Entered Quarantine 24881 | -2/Quarantine | Identified exit to Section 7 24882 | -2/Quarantine | Loaded intel: 3 scanalyzer locations 24948 | -2/Quarantine | Found Alien Impact Weapon 24948 | -2/Quarantine | Identified Core Stripper 25041 | -2/Quarantine | Spotted Alpha 7 25046 | -2/Quarantine | Warped through subspace 25058 | -2/Quarantine | Found Alien Artifact 25112 | -2/Quarantine | Discovered exit to Access (range 16) 25119 | -2/Quarantine | Found Transdimensional Reconstructor 25124 | -2/Quarantine | Found Transdimensional Reconstructor 25127 | -2/Quarantine | Found Alien Artifact 25129 | -2/Quarantine | Found Alien Artifact 25138 | -2/Quarantine | Found Alien Artifact 25140 | -2/Quarantine | Found Alien Artifact 25142 | -2/Quarantine | Found Alien Artifact 25153 | -2/Quarantine | Identified Hpw. Transdimensional Reconstructor (x2) 25153 | -2/Quarantine | Warped through subspace 25195 | -2/Quarantine | Identified Dimensional Node Initializer (x3) 25195 | -2/Quarantine | Initialized slip node 25216 | -2/Quarantine | Build established: Scavenger-Mutant 25292 | -2/Quarantine | Found Alien Artifact 25292 | -2/Quarantine | Identified Core Reset Matrix 25292 | -2/Quarantine | Identified Subatomic Replicator 25292 | -2/Quarantine | Used Core Reset Matrix 25296 | -2/Quarantine | Detected hypermatrix surge 25296 | -2/Quarantine | Sensed 3 artifacts in vicinity 25394 | -2/Quarantine | Core integrity fell below 50% 25424 | -2/Quarantine | System corruption reached 10% 25425 | -2/Quarantine | Warped through subspace to slip node 25453 | -2/Quarantine | Lost 7 parts (1p3n1u2w) 25527 | -2/Quarantine | Core integrity fell below 20% 25540 | -2/Quarantine | Discovered exit to Access (range 5) 25545 | -2/Quarantine | Entered Access 25545 | -1/Access | Evolved 2 slots: Propulsion x1, Utility x1 25562 | -1/Access | Lost 8 parts (1p1n4u2w) 25796 | -1/Access | Build established: Alien-Mutant 25827 | -1/Access | Tech Extrapolator generated special schematic: Wartreads 25949 | -1/Access | Spotted B-99 Colossus 26095 | -1/Access | Lost 3 parts (1n2u) 26179 | -1/Access | Lost 7 parts (1p2n2u2w) 26255 | -1/Access | Initialized slip node 26308 | -1/Access | Warped through subspace 26337 | -1/Access | Lost 3 parts (2n1u) 26350 | -1/Access | Found Prototype Processor 26350 | -1/Access | Identified Exp. Core Analyzer 26410 | -1/Access | Intercept squad dispatched 26419 | -1/Access | Spotted Tracker 26419 | -1/Access | Spotted Tracker 26420 | -1/Access | Energy Cycler disabled 26427 | -1/Access | Core integrity fell below 50% 26435 | -1/Access | Emitted hypermatrix ping 26438 | -1/Access | Core integrity fell below 20% 26440 | -1/Access | Assembled emerged from beneath the floor 26445 | -1/Access | Assembled emerged from beneath the floor 26469 | -1/Access | Spotted Combat Programmer 26470 | -1/Access | Lost 7 parts (4n3u) 26475 | -1/Access | System corruption reached 10% 26478 | -1/Access | Assembled emerged from beneath the floor 26491 | -1/Access | Spotted B-99 Colossus 26500 | -1/Access | Destroyed by B-99 Colossus with Multirail Last Messages --------------- 26470_ Detected hypermatrix ping. 26472_ Penetrated by EMDS Slug. 26478_ Assembled emerge from beneath the floor. 26478_ Slug penetrates Combat Programmer. 26479_ Combat Programmer resets Tracker, system corruption cleaned. 26480_ Slug penetrates Tracker. 26480_ O-32 Director sends out distress signal. 26481_ EMDS Slug penetrates as-86457. 26481_ as-86457 destroyed. 26481_ as-43292 Unknown Hover Unit temporarily disabled. 26481_ Slug penetrates as-76292. 26482_ Slug penetrates as-43292. 26483_ as-43292 destroyed. 26486_ System corrupted: Energy discharge (-28). 26486_ as-68181 Unknown Hover Unit temporarily disabled. 26492_ Acquired 114 matter. 26500_ W-44 Eye sends out distress signal. Map ----- +----------------------------------------------------+ | ? ???# #?????????????????????????????????????? | | ?"? ?# % #?????????????????????????????????????? | | " # #?????????????????????????????????????? | | # #?????????????????????????????????????? | | # #?????????????????????????????????????? | | # #?????????????????????????????????????? | | # #?????????????????????????????????????? | | # #?????????????????????????????????????? | | # #?????????????????????????????????????? | | # #?????????????????????????????????????? | | # #?????????????????????????????????????? | | ? # #?????????????????????????????????????? | | ???### #?????????????????? ????????????????? | | ?????+ #????????????????? ??????????????? | | ??? ?# #???????????????? ????????????? | | ?????# #???????????????? ????????????? | | ?????# #??????????????? p ???????????? | | ?????# #??????????????? ???????????? | | ?????# #????????????#"" ??????????? | | ?????# #????????????#"" = ??????????? | | ?????# ##############"" ??????????? | | ?????# # #"" w #?????????? | | ?#???# # #" w #?????????? | | ?????# # # #?????????? | | ?????# # # #?????????? | | ###### # """"" #@ #?????????? | | # """"" + " #?????????? | | # """"" # """ ??????????? | | + """"" # """ ?????????????? | | # """"" ; " ??????????????? | | # """"" # u ??????????????? | | ############ # ?????????????? | | ???????????# + ?????????????? | | ???????????##########+####BB###+#####????????????? | | ????????????????????# #???BB#????????????????????? | | ????????????????????# #???###????????????????????? | | ????????????????????# #??????????????????????????? | | ????????????????????# #??????????????????????????? | | ???????????????????? #??????????????????????????? | | ???????????????????? #??????????????????????????? | | ???????????????????? #??????????????????????????? | | ???????????????????? ???????????????????????????? | | ???????????????????? ???????????????????????????? | | ???????????????????? ???????????????????????????? | | ???????????????????? ???????????????????????????? | | ???????????????????? ???????????????????????????? | | ???????????????????? ?????????????? #####+#?????? | | ???????????????????? ?????????????+ ?????? | | ???????????????????????????????????# #?????? | | ???????????????????????????????????# #?????? | +----------------------------------------------------+ Best States ------------- Heat Dissipation 145 Energy Generation 73 Energy Capacity 600 Matter Stores 300 Matter Capacity 300 Sight Range 21 Robot Scan Range 20 Terrain Scan Range 24 Terrain Scan Density 10 ECM Strength 2 Jamming Range 16 Base Temperature (-) 200 Armor Coverage 830 Resistance: TH 10 Resistance: EX 25 Propulsion Shielding 33 Melee Speed Boost 20 Phase Shifting 10 Evasion (%) 70 Targeting Accuracy 10 Target Analysis 11 Recoil Reduction 2 Energy Filtering 50 Authchip Count 1 Item Schematics ----------------- Mak. Power Source | -2/Quarantine | Extrapolated Spk. Treads | -2/Quarantine | Extrapolated Spk. Medium Treads | -2/Quarantine | Extrapolated Spk. Heavy Treads | -2/Quarantine | Extrapolated Mak. Leg | -1/Access | Extrapolated Mak. Flight Unit | -1/Access | Extrapolated Mak. Coolant Network | -1/Access | Extrapolated Wartreads | -1/Access | Extrapolated Structural Scanner | -1/Access | Extrapolated Mak. Sensor Array | -1/Access | Extrapolated Mak. Terrain Scanner | -1/Access | Extrapolated Mak. Terrain Scan Processor | -1/Access | Extrapolated 0b10 Decoder Chip [Generic] | -1/Access | Extrapolated 0b10 Decoder Chip [Scout] | -1/Access | Extrapolated 0b10 Decoder Chip [Skirmisher] | -1/Access | Extrapolated Mak. Salvage Targeting Computer | -1/Access | Extrapolated Robot Schematics ------------------ None Fabricated ------------ Machine Rigger | x1 | -4/Factory | Authchip Multitool | x1 | -3/Armory | Authchip Alien Tech Used ----------------- Core Expander Integrated Dissipator Integrated Reactor Transdimensional Reconstructor Core Stripper High-powered Transdimensional Reconstructor Dimensional Node Initializer Core Reset Matrix Achievements -------------- None Challenges ------------ None Game ------ Seed SegregatorCompositeRailgun Manual? 0 Play Time 05:04:43 Cumulative 405.4 hours Start 2024.07.28 @ 00:46:09 End 2024.07.30 @ 15:19:25 Sessions 11 Manual Loads 0 Difficulty Rogue Special Mode None Game No. 269 Rogue 245 Adventurer 6 Explorer 18 Win Type - Total 31 Types 21/0/5/2/0/1/1/1/0 Lore% 85 Gallery% 92 Achievement% 80 Wizard Run 0 Options --------- Layout 1 ASCII 0 Keyboard 0 Movement Numpad Keybinds 0 Fullscreen 1 Font 16/TamsynBold Map View 55x38 Zoom Use 0% Tactical HUD 1 Map Filters NONE Filters NONE Steam 1 RUN: e7fbba88-3489-4ef3-939c-a2da3bac4169